fUSD/lending_fUSD_20250930
["ID","MTS","AMOUNT","RATE_DAILY","PERIOD"]
[388500570,1759219849964,-500.0,0.00019999,2]
[388500571,1759219849974,-1277.27,0.00019999,2]
[388500572,1759219849983,-500.0,0.00019999,2]
[388500573,1759219849993,-978.73,0.00019999,2]
[388500574,1759219850003,-3094.24,0.00019999,2]
[388500575,1759219850013,-708.1,0.00019999,2]
[388500576,1759219850022,-500.0,0.00019999,2]
[388500577,1759219850031,-5015.6,0.00019999,2]
[388500578,1759219850040,-8525.92,0.00019999,2]
[388500579,1759219850050,-500.0,0.00019999,2]
[388500580,1759219850059,-569.18,0.00019999,2]
[388500581,1759219850068,-500.0,0.00019999,2]
[388500582,1759219850077,-3420.39,0.00019999,2]
[388500583,1759219850086,-500.0,0.00019999,2]
[388500584,1759219850095,-500.0,0.00019999,2]
[388500585,1759219850104,-500.0,0.00019999,2]
[388500586,1759219850114,-409.42908643,0.00019999,2]
[388500587,1759219850123,-3167.24,0.00019999,2]
[388500588,1759219850132,-593.47,0.00019999,2]
[388500589,1759219850141,-401.88540695,0.00019999,2]
[388500590,1759219850150,-4882.41,0.00019999,2]
[388500591,1759219850159,-169.99936593,0.00019999,2]
[388500592,1759219850168,-500.0,0.00019999,2]
[388500593,1759219850178,-2075.59,0.00019999,2]
[388500594,1759219850187,-3953.56,0.00019999,2]
[388500595,1759219850196,-2174.14,0.00019999,2]
[388500596,1759219850205,-500.0,0.00019999,2]
[388500597,1759219850214,-402.76128795,0.00019999,2]
[388500598,1759219850223,-500.0,0.00019999,2]
[388500599,1759219850232,-402.680255,0.00019999,2]
[388500600,1759219850241,-3336.45,0.00019999,2]
[388500601,1759219850250,-1029.58,0.00019999,2]
[388500602,1759219850260,-3154.36,0.00019999,2]
[388500603,1759219850269,-402.251034,0.00019999,2]
[388500604,1759219850278,-500.0,0.00019999,2]
[388500605,1759219850287,-500.0,0.00019999,2]
[388500606,1759219850296,-500.0,0.00019999,2]
[388500607,1759219850305,-1306.51,0.00019999,2]
[388500608,1759219850314,-1615.42,0.00019999,2]
[388500609,1759219850323,-500.0,0.00019999,2]
[388500610,1759219850332,-663.34,0.00019999,2]
[388500611,1759219850341,-2290.96,0.00019999,2]
[388500612,1759219850350,-500.0,0.00019999,2]
[388500613,1759219850359,-500.0,0.00019999,2]
[388500614,1759219850368,-500.0,0.00019999,2]
[388500615,1759219850377,-3816.59,0.00019999,2]
[388500616,1759219850386,-500.0,0.00019999,2]
[388500617,1759219850395,-699.09,0.00019999,2]
[388500618,1759219850403,-742.25,0.00019999,2]
[388500619,1759219850413,-1000.0,0.00019999,2]
[388500620,1759219850421,-1044.28,0.00019999,2]
[388500621,1759219850434,-500.0,0.00019999,2]
[388500622,1759219850443,-500.0,0.00019999,2]
[388500623,1759219850452,-726.84,0.00019999,2]
[388500624,1759219850461,-500.0,0.00019999,2]
[388500625,1759219850470,-966.42,0.00019999,2]
[388500626,1759219850480,-500.0,0.00019999,2]
[388500627,1759219850489,-670.24,0.00019999,2]
[388500628,1759219850498,-896.21,0.00019999,2]
[388500629,1759219850507,-4825.52,0.00019999,2]
[388500630,1759219850516,-2926.92,0.00019999,2]
[388500631,1759219850525,-500.0,0.00019999,2]
[388500632,1759219850535,-4254.9,0.00019999,2]
[388500633,1759219850544,-579.21,0.00019999,2]
[388500634,1759219850554,-572.87441547,0.00019999,2]
[388500635,1759219850563,-1922.05,0.00019999,2]
[388500636,1759219850571,-500.0,0.00019999,2]
[388500637,1759219850580,-3345.47,0.00019999,2]
[388500638,1759219850590,-3641.42,0.00019999,2]
[388500639,1759219850598,-500.0,0.00019999,2]
[388500640,1759219850608,-1407.48,0.00019999,2]
[388500641,1759219850617,-500.0,0.00019999,2]
[388500642,1759219850626,-8303.55,0.00019999,2]
[388500643,1759219850635,-2221.79,0.00019999,2]
[388500644,1759219850644,-1962.91,0.00019999,2]
[388500645,1759219850653,-702.86,0.00019999,2]
[388500646,1759219850662,-500.0,0.00019999,2]
[388500647,1759219850671,-500.0,0.00019999,2]
[388500648,1759219850683,-500.0,0.00019999,2]
[388500649,1759219850692,-2641.68,0.00019999,2]
[388500650,1759219850701,-538.57,0.00019999,2]
[388500651,1759219850710,-1072.49,0.00019999,2]
[388500652,1759219850719,-7115.22,0.00019999,2]
[388500653,1759219850731,-500.0,0.00019999,2]
[388500654,1759219850741,-10025.56,0.00019999,2]
[388500655,1759219850751,-4221.71,0.00019999,2]
[388500656,1759219850760,-6332.76,0.00019999,2]
[388500657,1759219850770,-500.0,0.00019999,2]
[388500658,1759219850781,-500.0,0.00019999,2]
[388500659,1759219850790,-976.3,0.00019999,2]
[388500660,1759219850799,-502.79,0.00019999,2]
[388500661,1759219850808,-500.0,0.00019999,2]
[388500662,1759219850817,-13818.23,0.00019999,2]
[388500663,1759219850826,-960.04,0.00019999,2]
[388500664,1759219850835,-500.0,0.00019999,2]
[388500665,1759219850844,-500.0,0.00019999,2]
[388500666,1759219850853,-990.53,0.00019999,2]
[388500667,1759219850862,-500.0,0.00019999,2]
[388500668,1759219850872,-3120.72,0.00019999,2]
[388500669,1759219850881,-5614.64,0.00019999,2]
[388500670,1759219850890,-3994.0,0.00019999,2]
[388500671,1759219850899,-500.0,0.00019999,2]
[388500672,1759219850908,-526.16,0.00019999,2]
[388500673,1759219850917,-1318.95,0.00019999,2]
[388500674,1759219850926,-500.0,0.00019999,2]
[388500675,1759219850936,-500.0,0.00019999,2]
[388500676,1759219850945,-500.0,0.00019999,2]
[388500677,1759219850954,-1645.1,0.00019999,2]
[388500678,1759219850964,-3179.67,0.00019999,2]
[388500679,1759219850973,-4180.04,0.00019999,2]
[388500680,1759219850982,-1634.93,0.00019999,2]
[388500681,1759219850992,-500.0,0.00019999,2]
[388500682,1759219851002,-890.02,0.00019999,2]
[388500683,1759219851012,-1114.31,0.00019999,2]
[388500684,1759219851021,-806.62,0.00019999,2]
[388500685,1759219851030,-6140.76,0.00019999,2]
[388500686,1759219851040,-748.07,0.00019999,2]
[388500687,1759219851049,-500.0,0.00019999,2]
[388500688,1759219851058,-639.69,0.00019999,2]
[388500689,1759219851067,-555.62,0.00019999,2]
[388500690,1759219851076,-500.0,0.00019999,2]
[388500691,1759219851086,-2618.93,0.00019999,2]
[388500692,1759219851095,-4875.24,0.00019999,2]
[388500693,1759219851105,-586.04,0.00019999,2]
[388500694,1759219851530,-510.24,0.00019999,2]
[388500695,1759219851542,-500.0,0.00019999,2]
[388500696,1759219851552,-743.55,0.00019999,2]
[388500697,1759219851562,-721.63,0.00019999,2]
[388500698,1759219851571,-4401.15,0.00019999,2]
[388500699,1759219851580,-2442.23,0.00019999,2]
[388500700,1759219851590,-16510.42,0.00019999,2]
[388500701,1759219851599,-500.0,0.00019999,2]
[388500702,1759219851608,-500.0,0.00019999,2]
[388500703,1759219851617,-500.0,0.00019999,2]
[388500704,1759219851627,-3587.68,0.00019999,2]
[388500705,1759219851636,-1115.23,0.00019999,2]
[388500706,1759219851645,-500.0,0.00019999,2]
[388500707,1759219851654,-722.07,0.00019999,2]
[388500708,1759219851663,-500.0,0.00019999,2]
[388500709,1759219851673,-500.0,0.00019999,2]
[388500710,1759219851682,-3577.43,0.00019999,2]
[388500711,1759219851691,-3052.86,0.00019999,2]
[388500712,1759219851701,-500.0,0.00019999,2]
[388500713,1759219851710,-960.98,0.00019999,2]
[388500714,1759219851719,-500.0,0.00019999,2]
[388500715,1759219851728,-500.0,0.00019999,2]
[388500716,1759219851738,-500.0,0.00019999,2]
[388500717,1759219851747,-500.0,0.00019999,2]
[388500718,1759219851756,-4629.05,0.00019999,2]
[388500719,1759219851765,-500.0,0.00019999,2]
[388500720,1759219851775,-2617.97,0.00019999,2]
[388500721,1759219851783,-654.21,0.00019999,2]
[388500722,1759219851794,-888.9,0.00019999,2]
[388500723,1759219851803,-500.0,0.00019999,2]
[388500724,1759219851812,-1524.94,0.00019999,2]
[388500725,1759219851822,-500.0,0.00019999,2]
[388500726,1759219851831,-500.0,0.00019999,2]
[388500727,1759219851840,-500.0,0.00019999,2]
[388500728,1759219851849,-1447.53,0.00019999,2]
[388500729,1759219851859,-4242.42,0.00019999,2]
[388500730,1759219851868,-1823.91,0.00019999,2]
[388500731,1759219851880,-4200.95,0.00019999,2]
[388500732,1759219851893,-6194.78,0.00019999,2]
[388500733,1759219851903,-500.0,0.00019999,2]
[388500734,1759219851912,-4782.48,0.00019999,2]
[388500735,1759219851921,-3523.25,0.00019999,2]
[388500736,1759219851934,-500.0,0.00019999,2]
[388500737,1759219851943,-500.0,0.00019999,2]
[388500738,1759219851952,-500.0,0.00019999,2]
[388500739,1759219851961,-852.27,0.00019999,2]
[388500740,1759219851971,-3589.57,0.00019999,2]
[388500741,1759219851980,-6221.3,0.00019999,2]
[388500742,1759219851990,-1932.03,0.00019999,2]
[388500743,1759219851999,-500.0,0.00019999,2]
[388500744,1759219852009,-967.19,0.00019999,2]
[388500745,1759219852018,-500.0,0.00019999,2]
[388500746,1759219852027,-6479.91,0.00019999,2]
[388500747,1759219852036,-500.0,0.00019999,2]
[388500748,1759219852045,-1087.05,0.00019999,2]
[388500749,1759219852055,-529.59,0.00019999,2]
[388500750,1759219852063,-980.87,0.00019999,2]
[388500751,1759219852074,-4216.08,0.00019999,2]
[388500752,1759219852083,-4669.59,0.00019999,2]
[388500753,1759219852092,-500.0,0.00019999,2]
[388500754,1759219852101,-500.0,0.00019999,2]
[388500755,1759219852111,-16081.04,0.00019999,2]
[388500756,1759219852120,-2496.07,0.00019999,2]
[388500757,1759219852129,-500.0,0.00019999,2]
[388500758,1759219852138,-500.0,0.00019999,2]
[388500759,1759219852147,-1339.52,0.00019999,2]
[388500760,1759219852157,-28931.55,0.00019999,2]
[388500761,1759219852166,-801.76,0.00019999,2]
[388500762,1759219852175,-500.0,0.00019999,2]
[388500763,1759219852185,-1609.74,0.00019999,2]
[388500764,1759219852193,-500.0,0.00019999,2]
[388500765,1759219852203,-1010.28,0.00019999,2]
[388500766,1759219852212,-770.07,0.00019999,2]
[388500767,1759219852221,-1667.93,0.00019999,2]
[388500768,1759219852231,-7618.96,0.00019999,2]
[388500769,1759219852240,-1501.68,0.00019999,2]
[388500770,1759219852249,-500.0,0.00019999,2]
[388500771,1759219852258,-500.0,0.00019999,2]
[388500772,1759219852267,-524.91,0.00019999,2]
[388500773,1759219852276,-1574.5,0.00019999,2]
[388500774,1759219852285,-500.0,0.00019999,2]
[388500775,1759219852295,-500.0,0.00019999,2]
[388500776,1759219852304,-1703.17,0.00019999,2]
[388500777,1759219852313,-5140.23,0.00019999,2]
[388500778,1759219852322,-500.0,0.00019999,2]
[388500779,1759219852331,-21944.83,0.00019999,2]
[388500780,1759219852340,-500.0,0.00019999,2]
[388500781,1759219852349,-2598.65,0.00019999,2]
[388500782,1759219852359,-4634.73,0.00019999,2]
[388500783,1759219852368,-500.0,0.00019999,2]
[388500784,1759219852376,-5227.19,0.00019999,2]
[388500785,1759219852385,-500.0,0.00019999,2]
[388500786,1759219852394,-13931.67,0.00019999,2]
[388500787,1759219852403,-623.28,0.00019999,2]
[388500788,1759219852413,-500.0,0.00019999,2]
[388500789,1759219852422,-500.0,0.00019999,2]
[388500790,1759219852435,-500.0,0.00019999,2]
[388500791,1759219852444,-5484.44,0.00019999,2]
[388500792,1759219852453,-500.0,0.00019999,2]
[388500793,1759219852464,-608.74,0.00019999,2]
[388500794,1759219852475,-888.01,0.00019999,2]
[388500795,1759219852484,-7615.04,0.00019999,2]
[388500796,1759219852493,-4380.18,0.00019999,2]
[388500797,1759219852503,-660.43,0.00019999,2]
[388500798,1759219852513,-500.0,0.00019999,2]
[388500799,1759219852523,-5701.79,0.00019999,2]
[388500800,1759219852532,-500.0,0.00019999,2]
[388500801,1759219852541,-500.0,0.00019999,2]
[388500802,1759219852550,-660.86,0.00019999,2]
[388500803,1759219852560,-500.0,0.00019999,2]
[388500804,1759219852570,-500.0,0.00019999,2]
[388500805,1759219852583,-3008.71,0.00019999,2]
[388500806,1759219852592,-3833.26,0.00019999,2]
[388500807,1759219852601,-500.0,0.00019999,2]
[388500808,1759219852610,-500.0,0.00019999,2]
[388500809,1759219852619,-5093.68,0.00019999,2]
[388500810,1759219852628,-500.0,0.00019999,2]
[388500811,1759219852637,-3395.47,0.00019999,2]
[388500812,1759219852646,-533.81349583,0.00019999,2]
[388500813,1759219852655,-3670.87,0.00019999,2]
[388500814,1759219852665,-819.82,0.00019999,2]
[388500815,1759219852674,-506.25,0.00019999,2]
[388500816,1759219852684,-4514.42,0.00019999,2]
[388500817,1759219852693,-3980.76,0.00019999,2]
[388500818,1759219852702,-927.61,0.00019999,2]
[388500819,1759219852711,-1367.96,0.00019999,2]
[388500820,1759219852721,-607.85,0.00019999,2]
[388500821,1759219852731,-10071.52,0.00019999,2]
[388500822,1759219852741,-404.30538435,0.00019999,2]
[388500823,1759219852750,-1902.16,0.00019999,2]
[388500824,1759219852759,-500.0,0.00019999,2]
[388500825,1759219852768,-3337.5,0.00019999,2]
[388500826,1759219852777,-2092.15,0.00019999,2]
[388500827,1759219852787,-12246.67,0.00019999,2]
[388500828,1759219852796,-948.55,0.00019999,2]
[388500829,1759219852805,-1342.97,0.00019999,2]
[388500830,1759219852814,-500.0,0.00019999,2]
[388500831,1759219852824,-3252.75,0.00019999,2]
[388500832,1759219852834,-6340.89,0.00019999,2]
[388500833,1759219852844,-500.0,0.00019999,2]
[388500834,1759219852853,-936.23,0.00019999,2]
[388500835,1759219852863,-500.0,0.00019999,2]
[388500836,1759219852872,-5561.41,0.00019999,2]
[388500837,1759219852881,-550.55,0.00019999,2]
[388500838,1759219852891,-500.0,0.00019999,2]
[388500839,1759219852900,-1106.18,0.00019999,2]
[388500840,1759219852910,-500.0,0.00019999,2]
[388500841,1759219852937,-500.0,0.00019999,2]
[388500842,1759219852947,-500.0,0.00019999,2]
[388500843,1759219852958,-500.0,0.00019999,2]
[388500844,1759219852968,-1378.95,0.00019999,2]
[388500845,1759219852979,-18189.63,0.00019999,2]
[388500846,1759219852989,-3636.15,0.00019999,2]
[388500847,1759219853000,-500.0,0.00019999,2]
[388500848,1759219853011,-500.0,0.00019999,2]
[388500849,1759219853021,-500.0,0.00019999,2]
[388500850,1759219853032,-2306.0,0.00019999,2]
[388500851,1759219853042,-11380.75,0.00019999,2]
[388500852,1759219853053,-11765.84,0.00019999,2]
[388500853,1759219853064,-153901.03096937,0.0002,2]
[388500854,1759219853075,-171.25731759,0.0002,2]
[388500855,1759219853086,-151.0,0.0002,2]
[388500856,1759219853096,-153.14501467,0.0002,2]
[388500857,1759219853106,-200.67277784,0.0002,2]
[388500858,1759219853117,-200.67277784,0.0002,2]
[388500859,1759219853127,-200.67277784,0.0002,2]
[388500860,1759219853137,-160.53822227,0.0002,2]
[388500861,1759219853148,-200.67277784,0.0002,2]
[388500862,1759219853158,-200.67277784,0.0002,2]
[388500863,1759219853168,-1799.999999,0.0002,3]
[388500864,1759219853178,-202.54,0.0002,2]
[388500865,1759219853189,-150.50458338,0.0002,2]
[388500866,1759219853198,-160.53822228,0.0002,2]
[388500867,1759219853209,-158.38744319,0.0002,2]
[388500868,1759219853220,-180.0,0.0002,2]
[388500869,1759219853231,-4401.57949941,0.0002,2]
[388500870,1759219853241,-1048.43,0.0002,2]
[388500871,1759219853251,-500.0,0.0002,2]
[388500872,1759219853261,-993.27,0.0002,2]
[388500873,1759219853272,-1508.63,0.0002,2]
[388500874,1759219853282,-500.0,0.0002,2]
[388500875,1759219853292,-1380.48,0.0002,2]
[388500876,1759219853303,-930.08,0.0002,2]
[388500877,1759219853321,-1759.56,0.0002,2]
[388500878,1759219853331,-500.0,0.0002,2]
[388500879,1759219853342,-3600.84,0.0002,2]
[388500880,1759219853352,-500.0,0.0002,2]
[388500881,1759219853363,-692.57,0.0002,2]
[388500882,1759219853374,-500.0,0.0002,2]
[388500883,1759219853385,-528.23,0.0002,2]
[388500884,1759219853395,-500.0,0.0002,2]
[388500885,1759219853407,-500.0,0.0002,2]
[388500886,1759219853417,-400.0,0.0002,2]
[388500887,1759219853429,-150.0,0.0002,2]
[388500888,1759219853440,-500.0,0.0002,2]
[388500889,1759219853450,-1199.0,0.0002,2]
[388500890,1759219853460,-500.0,0.0002,2]
[388500891,1759219853471,-150.0,0.0002,2]
[388500892,1759219853481,-150.0,0.0002,2]
[388500893,1759219853491,-150.0,0.0002,2]
[388500894,1759219853501,-903.0,0.0002,2]
[388500895,1759219853514,-169.1,0.0002,2]
[388500896,1759219853524,-150.60245345,0.0002,2]
[388500897,1759219853535,-150.0,0.0002,2]
[388500898,1759219853546,-150.49286098,0.0002,2]
[388500899,1759219853556,-150.0,0.0002,2]
[388500900,1759219853567,-991.19801,0.0002,2]
[388500901,1759219853579,-150.0,0.0002,2]
[388500902,1759219853593,-150.0,0.0002,2]
[388500903,1759219853603,-9167.21006612,0.0002001,2]
[388500904,1759219853615,-5055.85058159,0.0002001,2]
[388500905,1759219853625,-5772.0,0.0002001,2]
[388500906,1759219853635,-817.91654082,0.00020019,2]
[388500907,1759219853646,-500.0,0.0002002,2]
[388500908,1759219853656,-1849.82,0.00020022,2]
[388500909,1759219853667,-150.50458338,0.00020031,2]
[388500910,1759219853677,-160.53822227,0.00020055,2]
[388500911,1759219853688,-150.50458338,0.00020063,2]
[388500912,1759219853698,-160.53822227,0.00020067,2]
[388500913,1759219853717,-6372.12388248,0.00020081,2]
[388500914,1759219853728,-150.50458338,0.00020094,2]
[388500915,1759219853739,-2518.42,0.00020105,2]
[388500916,1759219853750,-160.53822227,0.0002011,2]
[388500917,1759219853760,-5000.0,0.00020118,2]
[388500918,1759219853771,-150.50458338,0.00020126,2]
[388500919,1759219853782,-160.53822227,0.00020134,2]
[388500920,1759219853794,-817.91654082,0.00020141,2]
[388500921,1759219853804,-500.0,0.00020154,2]
[388500922,1759219853816,-2000.0,0.00020154,2]
[388500923,1759219853827,-150.50458338,0.00020157,2]
[388500924,1759219853837,-160.53822227,0.00020165,2]
[388500925,1759219853849,-152.0,0.00020172,5]
[388500926,1759219853860,-6372.12388248,0.00020172,2]
[388500927,1759219853872,-833.2,0.00020175,2]
[388500928,1759219853883,-500.0,0.00020176,2]
[388500929,1759219853894,-150.50458338,0.00020189,2]
[388500930,1759219853904,-160.53822227,0.000202,2]
[388500931,1759219853916,-4401.57949941,0.000202,2]
[388500932,1759219853927,-150.16,0.00020214,2]
[388500933,1759219853938,-150.50458338,0.0002022,2]
[388500934,1759219853948,-160.53822227,0.0002022,2]
[388500935,1759219853959,-88663.07812979,0.00020222,2]
[388500936,1759219853971,-268.38227826,0.0002025,2]
[388500937,1759219853982,-496.0,0.00020254,2]
[388500938,1759219853992,-817.91654082,0.00020263,2]
[388500939,1759219854002,-160.53822227,0.00020267,2]
[388500940,1759219854013,-151.0,0.00020269,2]
[388500941,1759219854024,-2771.64,0.00020271,2]
[388500942,1759219854035,-4023.83,0.00020271,2]
[388500943,1759219854045,-5452.97,0.00020271,2]
[388500944,1759219854056,-5268.16,0.00020271,2]
[388500945,1759219854067,-2117.45,0.00020271,2]
[388500946,1759219854077,-2912.33,0.00020271,2]
[388500947,1759219854087,-1747.82,0.00020271,2]
[388500948,1759219854106,-1714.41,0.00020271,2]
[388500949,1759219854117,-573.69,0.00020271,2]
[388500950,1759219854128,-500.0,0.00020271,2]
[388500951,1759219854138,-2726.03,0.00020271,2]
[388500952,1759219854149,-500.0,0.00020271,2]
[388500953,1759219854159,-3578.34,0.00020271,2]
[388500954,1759219854169,-500.0,0.00020271,2]
[388500955,1759219854180,-1555.83,0.00020271,2]
[388500956,1759219854191,-1638.59,0.00020271,2]
[388500957,1759219854202,-500.0,0.00020271,2]
[388500958,1759219854212,-5733.77,0.00020271,2]
[388500959,1759219854223,-500.0,0.00020271,2]
[388500960,1759219854234,-1082.74,0.00020271,2]
[388500961,1759219854245,-3598.92,0.00020271,2]
[388500962,1759219854256,-3395.89,0.00020271,2]
[388500963,1759219854266,-500.0,0.00020271,2]
[388500964,1759219854277,-500.0,0.00020271,2]
[388500965,1759219854287,-795.06,0.00020271,2]
[388500966,1759219854298,-18800.65,0.00020271,2]
[388500967,1759219854309,-500.0,0.00020271,2]
[388500968,1759219854319,-500.0,0.00020271,2]
[388500969,1759219854331,-1081.02,0.00020271,2]
[388500970,1759219854342,-3650.73,0.00020271,2]
[388500971,1759219854353,-500.0,0.00020271,2]
[388500972,1759219854365,-592.71,0.00020271,2]
[388500973,1759219854376,-2103.42,0.00020271,2]
[388500974,1759219854386,-500.0,0.00020271,2]
[388500975,1759219854398,-2222.58,0.00020271,2]
[388500976,1759219854409,-1394.53,0.00020271,2]
[388500977,1759219854420,-500.0,0.00020271,2]
[388500978,1759219854434,-500.0,0.00020271,2]
[388500979,1759219854445,-4753.49,0.00020271,2]
[388500980,1759219854456,-500.0,0.00020271,2]
[388500981,1759219854466,-2042.82,0.00020271,2]
[388500982,1759219854482,-4695.2,0.00020271,2]
[388500983,1759219854493,-500.0,0.00020271,2]
[388500984,1759219854505,-1641.8,0.00020271,2]
[388500985,1759219854515,-500.0,0.00020271,2]
[388500986,1759219854526,-15163.73,0.00020271,2]
[388500987,1759219854536,-833.2,0.00020271,2]
[388500988,1759219854546,-500.0,0.00020271,2]
[388500989,1759219854556,-500.0,0.00020271,2]
[388500990,1759219854566,-5203.0,0.00020271,2]
[388500991,1759219854576,-2110.38,0.00020271,2]
[388500992,1759219854586,-1240.36,0.00020271,2]
[388500993,1759219854596,-530.16,0.00020271,2]
[388500994,1759219854606,-500.0,0.00020271,2]
[388500995,1759219854616,-7496.37,0.00020271,2]
[388500996,1759219854626,-3187.78,0.00020271,2]
[388500997,1759219854637,-595.95,0.00020271,2]
[388500998,1759219854647,-500.0,0.00020271,2]
[388500999,1759219854658,-500.0,0.00020271,2]
[388501000,1759219854668,-500.0,0.00020271,2]
[388501001,1759219854681,-1091.37,0.00020272,2]
[388501002,1759219854691,-500.0,0.00020272,2]
[388501003,1759219854700,-500.0,0.00020272,2]
[388501004,1759219854711,-591.08,0.00020272,2]
[388501005,1759219854723,-500.0,0.00020272,2]
[388501006,1759219854734,-500.0,0.00020272,2]
[388501007,1759219854744,-1027.24,0.00020272,2]
[388501008,1759219854754,-945.81,0.00020272,2]
[388501009,1759219854764,-741.46,0.00020272,2]
[388501010,1759219854774,-1000.0,0.00020272,2]
[388501011,1759219854784,-1009.3,0.00020272,2]
[388501012,1759219854793,-500.0,0.00020272,2]
[388501013,1759219854804,-533.03,0.00020272,2]
[388501014,1759219854814,-636.41,0.00020272,2]
[388501015,1759219854825,-500.0,0.00020272,2]
[388501016,1759219854836,-500.0,0.00020272,2]
[388501017,1759219854846,-500.0,0.00020272,2]
[388501018,1759219854856,-1440.76,0.00020272,2]
[388501019,1759219854868,-500.0,0.00020272,2]
[388501020,1759219854878,-500.0,0.00020272,2]
[388501021,1759219854889,-500.0,0.00020272,2]
[388501022,1759219854899,-1369.59,0.00020272,2]
[388501023,1759219854909,-500.0,0.00020272,2]
[388501024,1759219854920,-500.0,0.00020272,2]
[388501025,1759219854930,-500.0,0.00020272,2]
[388501026,1759219854941,-500.0,0.00020272,2]
[388501027,1759219854951,-500.0,0.00020272,2]
[388501028,1759219854962,-500.0,0.00020272,2]
[388501029,1759219854972,-1618.94,0.00020272,2]
[388501030,1759219854984,-500.0,0.00020272,2]
[388501031,1759219854994,-500.0,0.00020272,2]
[388501032,1759219855003,-500.0,0.00020272,2]
[388501033,1759219855013,-500.0,0.00020272,2]
[388501034,1759219855023,-1019.61,0.00020272,2]
[388501035,1759219855033,-500.0,0.00020272,2]
[388501036,1759219855042,-500.0,0.00020272,2]
[388501037,1759219855052,-1166.98,0.00020272,2]
[388501038,1759219855062,-500.0,0.00020272,2]
[388501039,1759219855076,-500.0,0.00020272,2]
[388501040,1759219855086,-500.0,0.00020272,2]
[388501041,1759219855096,-500.0,0.00020272,2]
[388501042,1759219855107,-500.0,0.00020272,2]
[388501043,1759219855118,-500.0,0.00020272,2]
[388501044,1759219855127,-269.23168872,0.00020272,2]
[388501045,1759219855137,-500.0,0.00020272,2]
[388501046,1759219855147,-500.0,0.00020272,2]
[388501047,1759219855157,-500.0,0.00020272,2]
[388501048,1759219855167,-3189.7,0.00020272,2]
[388501049,1759219855177,-500.0,0.00020272,2]
[388501050,1759219855187,-500.0,0.00020272,2]
[388501051,1759219855197,-500.0,0.00020272,2]
[388501052,1759219855207,-4905.78,0.00020272,2]
[388501053,1759219855216,-557.44120161,0.00020272,2]
[388501054,1759219855227,-500.0,0.00020272,2]
[388501055,1759219855237,-3809.15,0.00020272,2]
[388501056,1759219855247,-500.0,0.00020272,2]
[388501057,1759219855257,-7704.64,0.00020272,2]
[388501058,1759219855267,-5385.91,0.00020272,2]
[388501059,1759219855276,-512.1,0.00020272,2]
[388501060,1759219855287,-4928.78,0.00020272,2]
[388501061,1759219855297,-500.0,0.00020272,2]
[388501062,1759219855307,-6962.59,0.00020272,2]
[388501063,1759219855319,-500.0,0.00020272,2]
[388501064,1759219855339,-11090.09,0.00020272,2]
[388501065,1759219855358,-1688.93,0.00020272,2]
[388501066,1759219855369,-5045.15,0.00020272,2]
[388501067,1759219855380,-25814.07,0.00020272,2]
[388501068,1759219855390,-269.92218713,0.00020272,2]
[388501069,1759219855400,-5184.27,0.00020272,2]